bitfinex/quotes_BTCUSD_20240729
["timestamp","ask_amount","ask_price","bid_price","bid_amount"]
[1722263316434,0.04789337,68810.0,68799.0,0.1451]
[1722263316613,0.09652832,68809.0,68808.0,0.145331]
[1722263316812,0.04789337,68810.0,68808.0,0.14309939]
[1722263317016,0.04789337,68810.0,68799.0,0.15949922]
[1722263317017,0.048,68813.0,68812.0,0.145323]
[1722263317251,0.14453812,68813.0,68812.0,0.145323]
[1722263317422,0.04789337,68812.0,68809.0,0.14309939]
[1722263317563,0.048,68813.0,68812.0,0.145323]
[1722263317786,0.048,68813.0,68812.0,0.28842239]
[1722263318235,0.048,68813.0,68812.0,0.57906839]
[1722263318665,0.048,68813.0,68812.0,0.14309939]
[1722263318889,0.048,68813.0,68812.0,0.28842239]
[1722263319115,0.14589337,68819.0,68812.0,0.14309939]
[1722263319335,0.14589337,68819.0,68818.0,0.14531]
[1722263319552,0.04789337,68821.0,68820.0,0.145306]
[1722263319754,0.14427958,68821.0,68820.0,0.145306]
[1722263319948,0.14427958,68821.0,68818.0,0.290621]
[1722263319949,0.04789337,68820.0,68818.0,0.290621]
[1722263320400,0.048,68819.0,68818.0,0.14531]
[1722263320604,0.048,68819.0,68818.0,0.435931]
[1722263320934,0.048,68827.0,68826.0,0.145293]
[1722263321135,0.048,68825.0,68819.0,0.14309939]
[1722263321321,0.09789337,68826.0,68819.0,0.14309939]
[1722263321322,0.048,68820.0,68819.0,0.14309939]
[1722263321763,0.048,68820.0,68819.0,0.28840739]
[1722263321963,0.048,68823.0,68819.0,0.14309939]
[1722263322163,0.02279699,68824.0,68819.0,0.14309939]
[1722263322164,0.02279699,68824.0,68823.0,0.4359]
[1722263322365,0.02279699,68824.0,68823.0,0.86959939]
[1722263322564,0.02279699,68824.0,68823.0,1.16019939]
[1722263322966,0.02279699,68824.0,68823.0,0.86959939]
[1722263323423,0.07079699,68824.0,68823.0,0.28839939]
[1722263323600,0.02279699,68824.0,68823.0,0.28839939]
[1722263323920,0.07079699,68824.0,68823.0,0.30239939]
[1722263324150,0.07079699,68824.0,68823.0,0.59299939]
[1722263325423,0.02279699,68824.0,68823.0,0.88359939]
[1722263325622,0.07079699,68824.0,68823.0,0.59299939]
[1722263325779,0.07079699,68824.0,68823.0,0.57899939]
[1722263326647,0.07079699,68824.0,68823.0,0.14309939]
[1722263327014,0.07279699,68824.0,68823.0,0.15709939]
[1722263327861,0.02279699,68824.0,68823.0,1.58909939]
[1722263328337,0.02279699,68824.0,68823.0,1.71420602]
[1722263328569,0.1,68845.0,68829.0,0.432175]
[1722263328723,0.048,68841.0,68840.0,0.145264]
[1722263328925,0.048,68841.0,68840.0,0.14309939]
[1722263329200,0.05,68841.0,68840.0,0.14309939]
[1722263329386,0.05,68841.0,68838.0,0.01439922]
[1722263329387,0.14789337,68839.0,68838.0,0.01439922]
[1722263330550,0.58369137,68839.0,68838.0,0.01439922]
[1722263330732,0.14789337,68839.0,68838.0,0.02639922]
[1722263330929,0.58369137,68839.0,68838.0,0.02639922]
[1722263331131,0.95742337,68839.0,68838.0,0.012]
[1722263331360,1.34453394,68839.0,68838.0,0.012]
[1722263331755,1.2707494,68839.0,68838.0,0.012]
[1722263331978,1.36696461,68839.0,68838.0,0.012]
[1722263332784,1.65749661,68839.0,68838.0,0.012]
[1722263333038,1.36696461,68839.0,68838.0,0.012]
[1722263334092,1.07643261,68839.0,68838.0,0.012]
[1722263334286,0.9802174,68839.0,68838.0,0.012]
[1722263334487,1.07621523,68839.0,68838.0,0.012]
[1722263335504,0.11879186,68839.0,68838.0,0.73580439]
[1722263335708,0.02279403,68839.0,68838.0,1.02634139]
[1722263335911,0.02279403,68839.0,68838.0,1.31687839]
[1722263336130,0.048,68848.0,68838.0,0.59053639]
[1722263336500,0.048,68848.0,68847.0,0.145249]
[1722263336705,0.002,68851.0,68847.0,0.145249]
[1722263336706,0.14589337,68851.0,68849.0,0.145244]
[1722263336911,0.048,68848.0,68846.0,0.01439922]
[1722263337155,0.048,68847.0,68846.0,0.01439922]
[1722263337322,0.048,68848.0,68847.0,0.145249]
[1722263337525,0.048,68848.0,68847.0,0.435748]
[1722263337679,0.048,68848.0,68847.0,0.28834839]
[1722263338088,0.048,68848.0,68847.0,0.14309939]
[1722263338293,0.14589337,68848.0,68847.0,0.14309939]
[1722263338693,0.048,68848.0,68847.0,0.28834839]
[1722263338893,0.048,68851.0,68850.0,0.145243]
[1722263339182,0.048,68851.0,68850.0,0.28834239]
[1722263339365,0.048,68853.0,68852.0,0.145239]
[1722263339502,0.002,68858.0,68853.0,0.0753]
[1722263339701,0.048,68858.0,68854.0,0.43647064]
[1722263340002,0.048,68858.0,68857.0,0.145228]
[1722263340201,0.048,68859.0,68858.0,0.435678]
[1722263340423,0.048,68859.0,68858.0,0.86922939]
[1722263340626,0.00084,68860.0,68859.0,0.145224]
[1722263340826,0.00084,68860.0,68853.0,0.08969922]
[1722263340827,0.048,68854.0,68853.0,0.01439922]
[1722263341245,0.048,68854.0,68853.0,0.15749861]
[1722263341611,0.048,68854.0,68853.0,0.16473684]
[1722263341801,0.09589337,68854.0,68853.0,0.01439922]
[1722263341957,0.14589337,68854.0,68853.0,0.01439922]
[1722263342940,0.07078648,68854.0,68853.0,0.01439922]
[1722263343102,0.07078648,68854.0,68853.0,0.30273461]
[1722263343320,0.16867985,68854.0,68853.0,0.01439922]
[1722263343460,0.17067985,68854.0,68853.0,0.01439922]
[1722263343665,0.14789337,68854.0,68853.0,0.01439922]
[1722263343888,0.048,68854.0,68853.0,0.30273461]
[1722263344066,0.05,68854.0,68853.0,0.15749861]
[1722263344305,0.048,68855.0,68854.0,0.145234]
[1722263344526,0.048,68857.0,68856.0,0.14523]
[1722263344687,0.09789337,68859.0,68857.0,0.145228]
[1722263344688,0.048,68858.0,68857.0,0.145228]
[1722263344894,0.048,68858.0,68857.0,0.28832739]
[1722263345356,0.048,68858.0,68857.0,0.43355639]
[1722263345560,0.048,68858.0,68857.0,0.14309939]
[1722263345721,0.048,68859.0,68858.0,0.145226]
[1722263345924,0.00084,68860.0,68859.0,0.145224]
[1722263346103,0.00084,68860.0,68859.0,0.28832339]
[1722263346303,0.00084,68860.0,68859.0,0.57877139]
[1722263346487,0.00084,68860.0,68859.0,0.86921939]
[1722263346968,0.00084,68860.0,68859.0,0.65777139]
[1722263347126,0.05084,68860.0,68859.0,0.14309939]
[1722263347305,0.14873337,68860.0,68853.0,0.07899922]
[1722263347504,0.048,68855.0,68854.0,0.28833339]
[1722263348051,0.048,68857.0,68854.0,0.43356839]
[1722263348293,0.048,68855.0,68854.0,0.57880239]
[1722263348470,0.048,68857.0,68855.0,0.290465]
[1722263348669,0.04873337,68860.0,68857.0,0.290457]
[1722263348848,0.04873337,68860.0,68858.0,0.28832439]
[1722263348849,0.14673337,68860.0,68858.0,0.28832439]
[1722263349048,0.04873337,68860.0,68858.0,0.14309939]
[1722263349251,0.048,68859.0,68858.0,0.28832439]
[1722263349428,0.43835837,68855.0,68854.0,0.014]
[1722263349610,0.38737231,68855.0,68854.0,0.014]
[1722263349810,0.05,68849.0,68848.0,0.00748654]
[1722263350011,0.05,68849.0,68848.0,0.14309939]
[1722263350483,0.05,68849.0,68839.0,0.0636]
[1722263350689,0.048,68841.0,68840.0,0.14309939]
[1722263350820,0.048,68841.0,68840.0,0.28836339]
[1722263351017,0.048,68841.0,68840.0,0.57889139]
[1722263351225,0.02278795,68847.0,68846.0,0.435754]
[1722263351417,0.04789337,68851.0,68850.0,0.145243]
[1722263351619,0.048,68854.0,68851.0,0.145241]
[1722263351832,0.048,68854.0,68851.0,0.00290452]
[1722263351833,0.048,68852.0,68851.0,0.00290452]
[1722263352090,0.04789337,68856.0,68855.0,0.145232]
[1722263352288,0.048,68856.0,68855.0,0.20739939]
[1722263352491,0.048,68856.0,68855.0,0.35263139]
[1722263352693,0.048,68856.0,68855.0,0.20739939]
[1722263353050,0.048,68856.0,68855.0,0.35263139]
[1722263353258,0.11954355,68857.0,68855.0,0.35263139]
[1722263353457,0.11954355,68857.0,68856.0,0.14309939]
[1722263353653,0.07154355,68857.0,68856.0,0.14309939]
[1722263354074,0.11954355,68857.0,68856.0,0.28832939]
[1722263354277,0.048,68858.0,68857.0,0.435685]
[1722263354484,0.048,68858.0,68857.0,0.57878439]
[1722263354685,0.04884,68860.0,68859.0,0.435672]
[1722263355049,0.04884,68860.0,68859.0,0.59317061]
[1722263355576,0.00084,68860.0,68859.0,0.59317061]
[1722263356168,0.00084,68860.0,68859.0,0.60717061]
[1722263356579,0.00084,68860.0,68859.0,0.59317061]
[1722263357060,0.00084,68860.0,68859.0,0.88361861]
[1722263357375,0.00819,68864.0,68863.0,0.435646]
[1722263357507,0.05619,68864.0,68863.0,0.57874539]
[1722263357694,0.00819,68864.0,68863.0,0.57874539]
[1722263357888,0.00819,68864.0,68863.0,0.86917639]
[1722263358380,0.03097275,68864.0,68863.0,0.86917639]
[1722263358918,0.07897275,68864.0,68863.0,0.14309939]
[1722263359146,0.05,68861.0,68860.0,0.00016]
[1722263359381,0.05,68861.0,68860.0,0.14325939]
[1722263359910,0.048,68861.0,68860.0,0.14325939]
[1722263360073,0.048,68862.0,68861.0,0.7261]
[1722263360287,0.048,68862.0,68861.0,0.86919939]
[1722263361487,0.00819,68864.0,68863.0,0.726077]
[1722263361710,0.00819,68864.0,68863.0,0.86917639]
[1722263361860,0.00819,68864.0,68863.0,1.15960739]
[1722263362061,0.00819,68864.0,68863.0,1.30760739]
[1722263362859,0.00819,68864.0,68863.0,1.01717639]
[1722263363067,0.03097205,68864.0,68863.0,1.01717639]
[1722263364719,0.03097205,68864.0,68863.0,1.30760739]
[1722263365119,0.03097205,68864.0,68863.0,1.01717639]
[1722263366445,0.03097205,68864.0,68863.0,1.30760739]
[1722263366600,0.03047205,68864.0,68863.0,1.33060739]
[1722263366850,0.03047205,68864.0,68863.0,1.30760739]
[1722263367048,0.00769,68864.0,68863.0,1.30760739]
[1722263367249,0.00769,68864.0,68863.0,1.51440739]
[1722263368692,0.00769,68864.0,68863.0,1.80483839]
[1722263369042,0.00819,68880.0,68863.0,1.80483839]
[1722263369043,0.00819,68880.0,68879.0,0.72591]
[1722263369243,0.00819,68880.0,68879.0,0.88340861]
[1722263369371,0.00819,68880.0,68879.0,1.23897261]
[1722263369773,0.00819,68880.0,68879.0,0.94860861]
[1722263370264,0.03096736,68880.0,68879.0,0.94860861]
[1722263370949,0.03096736,68880.0,68879.0,1.23897261]
[1722263371314,0.03096736,68880.0,68879.0,1.54333661]
[1722263371514,0.03096736,68880.0,68879.0,1.35507924]
[1722263371678,0.03096736,68880.0,68879.0,1.55357924]
[1722263371679,0.00819,68880.0,68879.0,1.55357924]
[1722263371874,0.00819,68880.0,68879.0,1.84394324]
[1722263372098,0.00819,68880.0,68879.0,1.55357924]
[1722263372337,0.00819,68880.0,68879.0,1.84394324]
[1722263372542,0.00319,68880.0,68879.0,1.84394324]
[1722263372769,0.0015,68915.0,68914.0,0.1]
[1722263372973,0.0015,68915.0,68914.0,1.17464663]
[1722263373136,0.0612,68934.0,68917.0,0.72551]
[1722263373315,0.0612,68934.0,68917.0,0.535306]
[1722263373316,0.04789337,68930.0,68917.0,0.535306]
[1722263373517,0.290058,68952.0,68917.0,0.535306]
[1722263373518,0.048,68932.0,68917.0,1.115714]
[1722263373757,0.05619,68928.0,68917.0,0.87066452]
[1722263373937,0.048,68927.0,68917.0,0.87066452]
[1722263374162,0.048,68927.0,68917.0,0.82551]
[1722263374564,0.048,68927.0,68917.0,0.83951]
[1722263374565,0.03095499,68918.0,68917.0,0.83951]
[1722263374992,0.03095499,68918.0,68917.0,0.98260939]
[1722263376037,0.03095499,68918.0,68917.0,1.27281339]
[1722263376444,0.03095499,68918.0,68917.0,1.31193278]
[1722263376618,0.03095499,68918.0,68917.0,1.33493278]
[1722263376874,0.00819,68918.0,68917.0,1.33493278]
[1722263377057,0.00819,68918.0,68917.0,1.37614883]
[1722263377223,0.00819,68918.0,68917.0,1.37825546]
[1722263377604,0.00819,68918.0,68917.0,1.66845946]
[1722263377804,0.00819,68918.0,68917.0,1.37614883]
[1722263378255,0.00819,68918.0,68917.0,1.36214883]
[1722263378454,0.00819,68918.0,68917.0,1.36947725]
[1722263378604,0.00819,68918.0,68917.0,1.38347725]
[1722263379007,0.00819,68918.0,68917.0,1.36645222]
[1722263379591,0.00819,68918.0,68917.0,1.38045222]
[1722263380002,0.00819,68918.0,68917.0,1.67276285]
[1722263380207,0.00819,68918.0,68917.0,1.65876285]
[1722263380930,0.00819,68918.0,68917.0,1.36645222]
[1722263381134,0.00819,68918.0,68917.0,1.36855885]
[1722263381535,0.00819,68918.0,68917.0,1.36645222]
[1722263381739,0.00819,68918.0,68917.0,1.3052612]
[1722263381898,0.00819,68918.0,68917.0,1.59305257]
[1722263382102,0.00819,68918.0,68917.0,1.30284857]
[1722263382303,0.05618,68933.0,68932.0,1.415493]
[1722263382304,0.00818,68933.0,68932.0,1.415493]
[1722263382565,0.0015,68948.0,68932.0,1.415493]
[1722263382566,0.0015,68948.0,68941.0,0.596154]
[1722263382758,0.0015,68948.0,68941.0,1.9103534]
[1722263382900,0.0015,68948.0,68941.0,2.25904821]
[1722263383110,0.0015,68948.0,68941.0,1.96894521]
[1722263383317,0.0015,68948.0,68941.0,1.68784521]
[1722263383677,0.0015,68948.0,68941.0,1.51508447]
[1722263383875,0.0015,68948.0,68941.0,1.09093561]
[1722263383876,0.048,68947.0,68941.0,1.09093561]
[1722263384075,0.05618,68942.0,68941.0,0.16567861]
[1722263384232,0.07393466,68942.0,68941.0,0.31072961]
[1722263384433,0.02593466,68942.0,68941.0,0.60083261]
[1722263384741,0.00318,68942.0,68941.0,0.60083261]
[1722263384941,0.00318,68942.0,68941.0,0.89093561]
[1722263385647,0.05118,68942.0,68941.0,0.60083261]
[1722263385867,0.00318,68942.0,68941.0,0.90493561]
[1722263386237,0.00318,68942.0,68941.0,1.18103861]
[1722263386661,0.00318,68942.0,68941.0,1.48514161]
[1722263386944,0.00318,68942.0,68941.0,1.58514161]
[1722263387140,0.00318,68942.0,68941.0,1.85114824]
[1722263387519,0.0015,68948.0,68947.0,1.305346]
[1722263387742,0.0015,68948.0,68947.0,1.64689944]
[1722263387903,0.0015,68948.0,68947.0,1.93589944]
[1722263388124,0.0015,68948.0,68947.0,1.95889944]
[1722263388499,0.0015,68948.0,68947.0,1.66882244]
[1722263389401,0.0015,68948.0,68947.0,1.64582244]
[1722263391017,0.0015,68948.0,68947.0,1.06566844]
[1722263391249,0.0495,68948.0,68947.0,0.14309939]
[1722263391429,0.0515,68948.0,68947.0,0.14309939]
[1722263391775,0.24369064,68948.0,68947.0,0.14309939]
[1722263391906,0.14589337,68942.0,68941.0,0.02987759]
[1722263392110,0.58104037,68942.0,68941.0,0.15127939]
[1722263392462,0.29094237,68942.0,68941.0,0.15127939]
[1722263392668,0.14589337,68942.0,68941.0,0.15127939]
[1722263393155,0.14589337,68942.0,68941.0,0.14309939]
[1722263394477,0.14589337,68935.0,68934.0,0.01439922]
[1722263394645,0.58108537,68935.0,68934.0,0.01439922]
[1722263394866,0.048,68927.0,68921.0,0.01439922]
[1722263395170,0.04789337,68931.0,68930.0,0.145074]
[1722263395381,0.04789337,68932.0,68931.0,0.435217]
[1722263395526,0.12075917,68935.0,68931.0,0.14309939]
[1722263395527,0.04789337,68934.0,68931.0,0.14309939]
[1722263395731,0.04789337,68934.0,68929.0,0.290152]
[1722263395732,0.04789337,68933.0,68932.0,0.28816939]
[1722263396555,0.04789337,68933.0,68932.0,0.14309939]
[1722263396749,0.002,68938.0,68932.0,0.14309939]
[1722263396750,0.048,68937.0,68932.0,0.14309939]
[1722263397059,0.09789337,68938.0,68937.0,0.435178]
[1722263397060,0.14589337,68938.0,68937.0,0.435178]
[1722263397258,0.002,68941.0,68937.0,0.435178]
[1722263397259,0.04789337,68939.0,68938.0,0.145057]
[1722263397476,0.04789337,68939.0,68938.0,0.57827139]
[1722263398660,0.07065077,68939.0,68938.0,0.57827139]
[1722263398881,0.16865077,68939.0,68938.0,0.57827139]
[1722263399320,0.0227574,68939.0,68938.0,0.57827139]
[1722263399531,0.11865077,68939.0,68938.0,0.14309939]
[1722263399655,0.16865077,68939.0,68938.0,0.14309939]
[1722263399867,0.16865077,68939.0,68938.0,0.15749861]
[1722263400183,0.07065077,68939.0,68938.0,0.15749861]
[1722263400384,0.16865077,68939.0,68938.0,0.15749861]
[1722263400765,0.60581677,68939.0,68938.0,0.01439922]
[1722263400994,0.435166,68939.0,68938.0,0.02839922]
[1722263401193,0.435166,68939.0,68938.0,0.014]
[1722263401194,0.725277,68939.0,68938.0,0.014]
[1722263401742,0.07154355,68942.0,68931.0,0.01439922]
[1722263401911,0.290111,68939.0,68931.0,0.15749861]
[1722263402117,0.07154355,68942.0,68931.0,0.15749861]
[1722263402118,0.145059,68938.0,68931.0,0.15749861]
[1722263402333,0.14507,68932.0,68931.0,0.01439922]
[1722263402860,0.435211,68932.0,68931.0,0.01439922]
[1722263403158,0.51971554,68932.0,68931.0,0.01439922]
[1722263403812,0.435211,68932.0,68931.0,0.01439922]
[1722263404046,0.570911,68932.0,68931.0,0.01439922]
[1722263404231,0.570911,68932.0,68918.0,0.01]
[1722263404232,0.22033492,68932.0,68921.0,0.07988498]
[1722263404433,0.0015542,68925.0,68922.0,0.14309939]
[1722263404875,0.0015542,68926.0,68922.0,0.14309939]
[1722263405587,0.0015542,68926.0,68922.0,0.28818939]
[1722263405935,0.0015542,68926.0,68922.0,0.14309939]
[1722263406143,0.0015542,68926.0,68922.0,0.28818939]
[1722263407385,0.1466382,68926.0,68922.0,0.14309939]
[1722263407586,0.0015542,68926.0,68921.0,0.02439922]
[1722263407800,0.08470937,68925.0,68918.0,0.01]
[1722263408087,0.290195,68919.0,68918.0,0.01]
[1722263408228,0.59940137,68919.0,68918.0,0.01]
[1722263408439,0.94948806,68919.0,68918.0,0.01]
[1722263408665,1.23968306,68919.0,68918.0,0.01]
[1722263408889,1.26244849,68919.0,68918.0,0.01]
[1722263409289,1.23968306,68919.0,68918.0,0.01]
[1722263409700,1.52987806,68919.0,68918.0,0.01]
[1722263410025,1.23968306,68919.0,68918.0,0.01]
[1722263410245,1.240133,68919.0,68918.0,0.01]
[1722263410409,1.530328,68919.0,68918.0,0.01]
[1722263410611,1.40623239,68919.0,68918.0,0.01]
[1722263410787,1.42263559,68919.0,68918.0,0.01]
[1722263410985,1.85320048,68919.0,68918.0,0.01]
[1722263411248,2.0518772,68919.0,68918.0,0.01]
[1722263411452,0.145149,68895.0,68888.0,0.7843]
[1722263411682,0.0753,68896.0,68889.0,0.145159]
[1722263411876,0.220446,68896.0,68885.0,0.78389631]
[1722263411991,0.0783,68906.0,68890.0,0.14309939]
[1722263412213,0.15647184,68905.0,68890.0,0.14309939]
[1722263412413,0.08492224,68904.0,68890.0,0.14309939]
[1722263412656,0.290292,68896.0,68890.0,0.14309939]
[1722263412860,0.145158,68891.0,68887.0,0.01439922]
[1722263413067,0.145162,68889.0,68887.0,0.01439922]
[1722263413264,0.145163,68888.0,68887.0,0.01439922]
[1722263413503,0.290297,68895.0,68887.0,0.01439922]
[1722263413679,0.0783,68906.0,68888.0,0.14309939]
[1722263414015,0.0783,68906.0,68895.0,0.0613]
[1722263414134,0.0783,68906.0,68896.0,0.28824439]
[1722263414339,0.0783,68906.0,68895.0,0.07569922]
[1722263414340,0.07154355,68901.0,68895.0,0.01439922]
[1722263414556,0.145142,68898.0,68895.0,0.01439922]
[1722263414791,0.07154355,68901.0,68895.0,0.01439922]
[1722263414792,0.145145,68897.0,68895.0,0.01439922]
[1722263414993,0.07154355,68901.0,68888.0,0.01439922]
[1722263415298,0.145142,68898.0,68889.0,0.14309939]
[1722263415531,0.07154355,68901.0,68891.0,0.145156]
[1722263415532,0.14514,68899.0,68891.0,0.145156]
[1722263415710,0.14514,68899.0,68889.0,0.14309939]
[1722263415711,0.07154355,68901.0,68889.0,0.14309939]
[1722263415847,0.290278,68900.0,68889.0,0.14309939]
[1722263416063,0.07154355,68901.0,68889.0,0.14309939]
[1722263416259,0.02277261,68898.0,68893.0,0.290301]
[1722263416466,0.02277261,68898.0,68889.0,0.14309939]
[1722263416777,0.02277261,68898.0,68895.0,0.145148]
[1722263416975,0.02277261,68898.0,68895.0,0.15954722]
[1722263417200,0.02277261,68898.0,68896.0,0.290292]
[1722263417402,0.02277261,68898.0,68895.0,0.02739922]
[1722263417604,0.145132,68903.0,68896.0,0.145145]
[1722263417806,0.21668555,68898.0,68895.0,0.01439922]
[1722263417978,0.145146,68896.0,68895.0,0.014]
[1722263418381,0.435438,68896.0,68895.0,0.014]
[1722263418993,0.14984355,68906.0,68895.0,0.014]
[1722263419194,0.145146,68896.0,68895.0,0.014]
[1722263419515,0.72573,68896.0,68895.0,0.014]
[1722263419752,0.77563,68896.0,68895.0,0.014]
[1722263419923,0.145146,68896.0,68895.0,0.014]
[1722263420129,0.0499,68903.0,68895.0,0.014]
[1722263420335,0.07154355,68899.0,68895.0,0.014]
[1722263420654,0.02277303,68896.0,68895.0,0.014]
[1722263421663,0.45821103,68896.0,68895.0,0.014]
[1722263422424,0.435438,68896.0,68895.0,0.014]
[1722263422619,0.72573,68896.0,68895.0,0.014]
[1722263423020,0.290305,68894.0,68885.0,0.145168]
[1722263423364,0.145154,68892.0,68885.0,0.28826739]
[1722263423596,0.145154,68892.0,68880.0,0.01439922]
[1722263423597,0.07154355,68892.0,68880.0,0.01439922]
[1722263423796,0.290333,68887.0,68880.0,0.15749861]
[1722263424006,0.0783,68891.0,68880.0,0.15749861]
[1722263424137,0.145173,68884.0,68878.0,0.06581875]
[1722263424338,0.290327,68888.0,68879.0,0.14309939]
[1722263424636,0.145174,68883.0,68879.0,0.14309939]
[1722263425590,0.145181,68880.0,68878.0,0.058177]
[1722263425818,0.145181,68880.0,68879.0,0.013]
[1722263426010,0.79744455,68880.0,68879.0,0.013]
[1722263426441,0.435546,68879.0,68878.0,0.058177]
[1722263426591,0.435583,68873.0,68872.0,0.008987]
[1722263426758,1.066261,68873.0,68872.0,0.008987]
[1722263428314,0.775872,68873.0,68872.0,0.008987]
[1722263428484,0.52037797,68873.0,68872.0,0.008987]
[1722263428691,0.07154355,68880.0,68872.0,0.008987]
[1722263428692,0.290378,68876.0,68872.0,0.008987]
[1722263428892,0.145194,68873.0,68872.0,0.008987]
[1722263429094,0.07154355,68880.0,68872.0,0.008987]
[1722263429095,0.290368,68879.0,68872.0,0.008987]
[1722263429294,0.145194,68873.0,68872.0,0.008987]
[1722263429494,0.725972,68873.0,68872.0,0.008987]
[1722263430096,0.435583,68873.0,68872.0,0.008987]
[1722263430354,0.145194,68873.0,68872.0,0.008987]
[1722263430544,0.13516504,68883.0,68872.0,0.008987]
[1722263430545,0.08526504,68883.0,68872.0,0.008987]
[1722263430751,0.43554,68880.0,68879.0,0.014]
[1722263430952,0.7259,68880.0,68879.0,0.014]
[1722263431108,0.23035751,68880.0,68879.0,0.014]
[1722263431324,0.14518,68880.0,68879.0,0.014]
[1722263431490,0.43554,68880.0,68879.0,0.014]
[1722263431689,1.01626,68880.0,68879.0,0.014]
[1722263431940,1.10139432,68880.0,68879.0,0.014]
[1722263432308,1.12417404,68880.0,68879.0,0.014]
[1722263435389,1.25057404,68880.0,68879.0,0.014]
[1722263435628,1.016361,68873.0,68872.0,0.008987]
[1722263435843,1.17303887,68873.0,68872.0,0.008987]
[1722263436056,1.17303887,68873.0,68872.0,0.017987]
[1722263436490,1.17303887,68873.0,68872.0,0.008987]
[1722263436706,1.19582033,68873.0,68872.0,0.008987]
[1722263436931,1.17303887,68873.0,68872.0,0.017987]
[1722263437581,1.1958217,68873.0,68872.0,0.017987]
[1722263438204,1.55783692,68873.0,68872.0,0.017987]
[1722263438450,2.25487945,68873.0,68872.0,0.017987]
[1722263438685,2.33287945,68873.0,68872.0,0.017987]
[1722263438884,2.31007211,68873.0,68872.0,0.017987]
[1722263439730,2.30753696,68873.0,68872.0,0.017987]
[1722263440561,2.31503249,68873.0,68872.0,0.017987]
[1722263441139,2.05663249,68873.0,68872.0,0.017987]
[1722263441337,2.34693632,68873.0,68872.0,0.008987]
[1722263441609,2.39683632,68873.0,68872.0,0.008987]
[1722263441752,2.41962079,68873.0,68872.0,0.008987]
[1722263442769,2.39683632,68873.0,68872.0,0.008987]
[1722263443286,2.10644732,68873.0,68872.0,0.008987]
[1722263443752,2.10844732,68873.0,68872.0,0.009987]
[1722263444286,2.10565775,68873.0,68872.0,0.008987]
[1722263444781,2.10565775,68873.0,68872.0,0.009987]
[1722263444782,2.10765775,68873.0,68872.0,0.009987]
[1722263445042,2.10709896,68873.0,68872.0,0.009987]
[1722263445597,2.10709896,68873.0,68872.0,0.008987]
[1722263445598,2.10509896,68873.0,68872.0,0.008987]
[1722263446001,2.12788387,68873.0,68872.0,0.008987]
[1722263446224,1.91188448,68873.0,68872.0,0.008987]
[1722263446626,2.05498387,68873.0,68872.0,0.008987]
[1722263447036,2.03219896,68873.0,68872.0,0.008987]
[1722263447489,1.8329092,68873.0,68872.0,0.008987]
[1722263447778,2.03197858,68873.0,68872.0,0.008987]
[1722263448157,2.03173256,68873.0,68872.0,0.008987]
[1722263448333,2.03058172,68873.0,68872.0,0.008987]
[1722263448766,1.80948233,68873.0,68872.0,0.008987]
[1722263448947,1.62705159,68873.0,68872.0,0.008987]
[1722263449370,1.69595881,68873.0,68872.0,0.008987]
[1722263449776,1.62705159,68873.0,68872.0,0.008987]
[1722263449953,1.6980028,68873.0,68872.0,0.009987]
[1722263450185,1.83554377,68873.0,68872.0,0.009987]
[1722263450362,1.97864316,68873.0,68872.0,0.009987]
[1722263450563,1.75493821,68873.0,68872.0,0.008987]
[1722263450805,1.95390091,68873.0,68872.0,0.008987]
[1722263451004,1.81280152,68873.0,68872.0,0.008987]
[1722263452622,1.52241252,68873.0,68872.0,0.008987]
[1722263453104,1.05847997,68873.0,68872.0,0.008987]
[1722263453300,1.16519405,68873.0,68872.0,0.008987]
[1722263453523,1.47198769,68873.0,68872.0,0.008987]
[1722263453726,1.44485879,68873.0,68872.0,0.008987]
[1722263453951,1.64582136,68873.0,68872.0,0.008987]
[1722263454518,1.78892075,68873.0,68872.0,0.008987]
[1722263454730,1.79092075,68873.0,68872.0,0.009987]
[1722263454928,1.86972075,68873.0,68872.0,0.009987]
[1722263455264,1.96972075,68873.0,68872.0,0.009987]
[1722263455501,1.96772075,68873.0,68872.0,0.008987]
[1722263455864,1.88892075,68873.0,68872.0,0.008987]
[1722263456891,1.88816768,68873.0,68872.0,0.008987]
[1722263457327,1.76985235,68873.0,68872.0,0.008987]
[1722263457527,1.56964285,68873.0,68872.0,0.008987]
[1722263457763,1.77018534,68873.0,68872.0,0.008987]
[1722263457902,1.47979634,68873.0,68872.0,0.008987]
[1722263458286,1.27925385,68873.0,68872.0,0.008987]
[1722263458485,1.48066918,68873.0,68872.0,0.008987]
[1722263458735,1.45588512,68873.0,68872.0,0.008987]
[1722263459070,1.45788512,68873.0,68872.0,0.074387]
[1722263459251,1.35788512,68873.0,68872.0,0.074387]
[1722263459402,1.06749612,68873.0,68872.0,0.153787]
[1722263459791,0.33202859,68873.0,68872.0,0.44208239]
[1722263459987,0.05711009,68873.0,68872.0,0.58727939]
[1722263460186,0.145178,68881.0,68873.0,0.145192]
[1722263460451,0.14282217,68880.0,68879.0,0.145182]
[1722263460650,0.14282217,68880.0,68879.0,1.01460939]
[1722263460651,0.08571208,68880.0,68879.0,1.01460939]
[1722263460814,0.290322,68889.0,68879.0,0.28869939]
[1722263460994,0.14298448,68888.0,68880.0,0.14309939]
[1722263461196,0.145172,68884.0,68880.0,0.14309939]
[1722263461397,0.14298448,68883.0,68880.0,0.14309939]
[1722263461601,0.07154355,68889.0,68879.0,0.290781]
[1722263461602,0.08572557,68882.0,68879.0,0.290781]
[1722263461963,0.08572557,68881.0,68880.0,0.0626]
[1722263462467,0.23090257,68881.0,68880.0,0.0626]
[1722263462677,0.81161257,68881.0,68880.0,0.0626]
[1722263462968,0.08572557,68881.0,68880.0,0.0626]
[1722263463406,0.08572557,68881.0,68880.0,0.35087939]
[1722263463555,0.2903,68895.0,68885.0,0.1428]
[1722263463758,0.08560904,68894.0,68886.0,0.14600255]
[1722263463960,0.08560904,68893.0,68890.0,0.1428]
[1722263464165,0.08560904,68892.0,68891.0,0.20809939]
[1722263464364,0.08567056,68896.0,68895.0,0.1428]
[1722263464586,0.08567488,68896.0,68895.0,0.28589939]
[1722263464945,0.08567488,68899.0,68895.0,0.28589939]